fUST/lending_fUST_20240117
["ID","MTS","AMOUNT","RATE_DAILY","PERIOD"]
[311857737,1705476641401,-1598.09,0.00022054,2]
[311857739,1705476641409,-500.0,0.00022054,2]
[311857741,1705476641418,-500.0,0.00022054,2]
[311857743,1705476641429,-500.0,0.00022054,2]
[311857745,1705476641438,-500.0,0.00022054,2]
[311857747,1705476641448,-12506.85,0.00022054,2]
[311857749,1705476641458,-500.0,0.00022054,2]
[311857751,1705476641468,-500.0,0.00022054,2]
[311857753,1705476641477,-4675.15,0.00022054,2]
[311857755,1705476641486,-273.11860915,0.00022054,2]
[311857757,1705476641495,-2087.02,0.00022054,2]
[311857759,1705476641505,-500.0,0.00022054,2]
[311857761,1705476641514,-665.96,0.00022054,2]
[311857763,1705476641523,-1915.79,0.00022054,2]
[311857765,1705476641531,-1193.83,0.00022054,2]
[311857767,1705476641540,-500.0,0.00022054,2]
[311857769,1705476641549,-500.0,0.00022054,2]
[311857771,1705476641558,-500.0,0.00022054,2]
[311857773,1705476641567,-542.59799575,0.00022054,2]
[311857775,1705476641576,-721.7,0.00022054,2]
[311857777,1705476641585,-5289.22,0.00022054,2]
[311857779,1705476641594,-500.0,0.00022054,2]
[311857782,1705476641605,-500.0,0.00022054,2]
[311857784,1705476641616,-500.0,0.00022054,2]
[311857786,1705476641625,-1107.64,0.00022054,2]
[311857788,1705476641634,-1018.67,0.00022054,2]
[311857790,1705476641643,-1455.18,0.00022054,2]
[311857791,1705476641653,-500.0,0.00022054,2]
[311857794,1705476641662,-500.0,0.00022054,2]
[311857796,1705476641672,-1404.9,0.00022054,2]
[311857797,1705476641681,-13274.37,0.00022054,2]
[311857799,1705476641690,-586.54466235,0.00022054,2]
[311857801,1705476641700,-695.87,0.00022054,2]
[311857803,1705476641710,-500.0,0.00022054,2]
[311857805,1705476641719,-1408.03,0.00022054,2]
[311857807,1705476641728,-5337.66,0.00022054,2]
[311857809,1705476641737,-500.0,0.00022054,2]
[311857811,1705476641746,-500.0,0.00022054,2]
[311857813,1705476641756,-500.0,0.00022054,2]
[311857815,1705476641766,-500.0,0.00022191,2]
[311857818,1705476641776,-500.0,0.00022191,2]
[311857820,1705476641785,-1325.22,0.00022191,2]
[311857822,1705476641794,-500.0,0.00022191,2]
[311857824,1705476641804,-500.0,0.00022191,2]
[311857826,1705476641813,-500.0,0.00022191,2]
[311857828,1705476641822,-500.0,0.00022191,2]
[311857830,1705476641831,-500.0,0.00022191,2]
[311857831,1705476641840,-500.0,0.00022191,2]
[311857833,1705476641850,-669.15,0.00022191,2]
[311857836,1705476641859,-500.0,0.00022191,2]
[311857838,1705476641870,-500.0,0.00022191,2]
[311857840,1705476641880,-157.49040084,0.00022191,2]
[311857842,1705476641889,-500.0,0.00022191,2]
[311857844,1705476641898,-500.0,0.00022191,2]
[311857846,1705476641907,-511.31,0.00022191,2]
[311857848,1705476641915,-500.0,0.00022191,2]
[311857850,1705476641924,-694.25,0.00022191,2]
[311857852,1705476641933,-500.0,0.00022191,2]
[311857854,1705476641942,-500.0,0.00022191,2]
[311857856,1705476641951,-615.67,0.00022191,2]
[311857857,1705476641960,-500.0,0.00022191,2]
[311857859,1705476641969,-500.0,0.00022191,2]
[311857861,1705476641978,-500.0,0.00022191,2]
[311857864,1705476641987,-504.50021946,0.00022191,2]
[311857865,1705476641997,-500.0,0.00022191,2]
[311857867,1705476642006,-1040.87,0.00022191,2]
[311857869,1705476642015,-505.14162514,0.00022191,2]
[311857871,1705476642023,-500.0,0.00022191,2]
[311857873,1705476642033,-500.0,0.00022191,2]
[311857875,1705476642042,-500.0,0.00022191,2]
[311857877,1705476642051,-520.27,0.00022191,2]
[311857879,1705476642060,-509.38162307,0.00022191,2]
[311857881,1705476642070,-573.88,0.00022191,2]
[311857883,1705476642079,-500.0,0.00022191,2]
[311857884,1705476642088,-500.0,0.00022191,2]
[311857885,1705476642097,-1231.49,0.00022191,2]
[311857886,1705476642106,-815.87,0.00022191,2]
[311857887,1705476642116,-500.0,0.00022191,2]
[311857888,1705476642125,-500.0,0.00022191,2]
[311857889,1705476642134,-938.96,0.00022191,2]
[311857890,1705476642143,-382.58669765,0.00022191,2]
[311857891,1705476642152,-500.0,0.00022191,2]
[311857892,1705476642161,-500.0,0.00022191,2]
[311857893,1705476642171,-743.63,0.00022191,2]
[311857894,1705476642180,-500.0,0.00022191,2]
[311857895,1705476642190,-500.0,0.00022191,2]
[311857896,1705476642199,-375.08228626,0.00022191,2]
[311857897,1705476642212,-1929.53,0.00022191,2]
[311857898,1705476642221,-2683.61,0.00022191,2]
[311857899,1705476642230,-500.0,0.00022191,2]
[311857900,1705476642239,-7105.09,0.00022191,2]
[311857901,1705476642248,-2521.67,0.00022191,2]
[311857902,1705476642257,-500.0,0.00022191,2]
[311857903,1705476642266,-592.28485347,0.00022191,2]
[311857904,1705476642275,-500.0,0.00022191,2]
[311857905,1705476642285,-583.39,0.00022191,2]
[311857906,1705476642294,-500.0,0.00022191,2]
[311857907,1705476642303,-2139.9,0.00022191,2]
[311857908,1705476642312,-605.37,0.00022191,2]
[311857909,1705476642322,-1502.16,0.00022191,2]
[311857911,1705476642331,-500.0,0.00022191,2]
[311857913,1705476642342,-500.0,0.00022191,2]
[311857915,1705476642351,-605.82,0.00022191,2]
[311857917,1705476642360,-4624.33781319,0.00022191,2]
[311857920,1705476642376,-6622.12064541,0.00022191,2]
[311858045,1705476643487,-500.0,0.00021917,2]
[311858047,1705476643497,-1666.58606996,0.00022044,3]
[311858053,1705476643542,-396.85223137,0.00022044,3]
[311862852,1705477833147,-178.58004626,0.00019388,2]
[311862854,1705477833157,-155.0,0.00019389,2]
[311862855,1705477833167,-155.0,0.0001939,3]
[311862857,1705477833176,-208.66038293,0.0001939,2]
[311862858,1705477833186,-15900.59154899,0.00019395,2]
[311862859,1705477833195,-15204.41172658,0.00019396,2]
[311862860,1705477833204,-24900.0,0.00019398,2]
[311862861,1705477833213,-283.4976369,0.00019921,2]
[311862862,1705477833223,-823.58048449,0.0002,2]
[311862863,1705477833232,-2995.12470388,0.0002009,2]
[311862864,1705477833242,-886.04542272,0.00020091,2]
[311862865,1705477833252,-156.10545261,0.00021115,2]
[311862866,1705477833262,-200.0,0.00021333,7]
[311862867,1705477833271,-207.63985174,0.00021815,2]
[311862868,1705477833280,-687.23089543,0.000219,2]
[311862869,1705477833290,-2712.0822543,0.00021902,2]
[311862870,1705477833299,-374.3786441,0.00021903,2]
[311862871,1705477833309,-2101.24804165,0.00021909,2]
[311862872,1705477833319,-679.24429502,0.00021911,2]
[311862873,1705477833328,-11528.3573826,0.00021911,2]
[311862874,1705477833345,-2399.96935405,0.00021911,2]
[311862912,1705477838791,-5751.99956717,0.00021911,2]
[311862914,1705477838809,-155.0310062,0.00021912,2]
[311862916,1705477838820,-156.10918164,0.00021912,2]
[311862919,1705477838847,-1915.58709636,0.00021912,2]
[311862921,1705477838856,-245.97076083,0.00021912,2]
[311862924,1705477838866,-2454.31215094,0.00021912,2]
[311862925,1705477838875,-301.52967926,0.00021912,2]
[311862927,1705477838884,-3741.03452946,0.00021912,2]
[311862929,1705477838894,-162.73106814,0.00021913,2]
[311862930,1705477838903,-36924.85068782,0.00021914,2]
[311862931,1705477838912,-224.50209568,0.00021915,2]
[311862932,1705477838922,-261.85697331,0.00021916,2]
[311862933,1705477838932,-500.0,0.00021917,2]
[311862934,1705477838941,-500.0,0.00021917,2]
[311862935,1705477838950,-500.0,0.00021917,2]
[311862936,1705477838959,-500.0,0.00021917,2]
[311862937,1705477838968,-500.0,0.00021917,2]
[311862938,1705477838977,-500.0,0.00021917,2]
[311862939,1705477838986,-500.0,0.00021917,2]
[311862940,1705477838995,-500.0,0.00021917,2]
[311862941,1705477839005,-615.47939903,0.00021917,2]
[311862942,1705477839014,-1042.14,0.00021917,2]
[311862943,1705477839024,-408.30555975,0.00021917,2]
[311862944,1705477839035,-500.0,0.00021917,2]
[311862945,1705477839045,-500.0,0.00021917,2]
[311862946,1705477839055,-500.0,0.00021917,2]
[311862947,1705477839065,-500.0,0.00021917,2]
[311862948,1705477839074,-1292.43,0.00021917,2]
[311862949,1705477839083,-500.0,0.00021917,2]
[311862950,1705477839092,-624.44,0.00021917,2]
[311862951,1705477839101,-501.95209961,0.00021917,2]
[311862952,1705477839110,-500.0,0.00021917,2]
[311862953,1705477839119,-500.0,0.00021917,2]
[311862954,1705477839128,-500.0,0.00021917,2]
[311862955,1705477839137,-500.0,0.00021917,2]
[311862956,1705477839147,-500.0,0.00021917,2]
[311862957,1705477839156,-740.2,0.00021917,2]
[311862958,1705477839165,-918.43,0.00021917,2]
[311862959,1705477839174,-500.0,0.00021917,2]
[311862960,1705477839184,-500.0,0.00021917,2]
[311862961,1705477839193,-500.0,0.00021917,2]
[311862962,1705477839202,-500.0,0.00021917,2]
[311862963,1705477839211,-382.58669765,0.00021917,2]
[311862964,1705477839220,-500.0,0.00021917,2]
[311862965,1705477839229,-500.0,0.00021917,2]
[311862966,1705477839238,-500.0,0.00021917,2]
[311862967,1705477839248,-500.0,0.00021917,2]
[311862968,1705477839257,-325.42261473,0.00021917,2]
[311862969,1705477839266,-1057.01,0.00021917,2]
[311862970,1705477839275,-500.0,0.00021917,2]
[311862971,1705477839284,-500.0,0.00021917,2]
[311862972,1705477839293,-500.0,0.00021917,2]
[311862973,1705477839303,-500.0,0.00021917,2]
[311862974,1705477839313,-500.0,0.00021917,2]
[311862975,1705477839322,-500.0,0.00021917,2]
[311862976,1705477839331,-500.0,0.00021917,2]
[311862977,1705477839341,-500.0,0.00021917,2]
[311862978,1705477839351,-500.0,0.00021917,2]
[311862979,1705477839361,-500.0,0.00021917,2]
[311862980,1705477839370,-586.54466235,0.00021917,2]
[311862981,1705477839379,-500.0,0.00021917,2]
[311862982,1705477839388,-429.95876673,0.00021917,2]
[311862983,1705477839398,-434.48775725,0.00021917,2]
[311862984,1705477839407,-2274.38,0.00021917,2]
[311862985,1705477839416,-455.57136527,0.00021917,2]
[311862986,1705477839426,-222.61017779,0.00021917,2]
[311862987,1705477839435,-500.0,0.00021917,2]
[311862988,1705477839444,-503.51,0.00021917,2]
[311862989,1705477839454,-1432.89,0.00021917,2]
[311862990,1705477839463,-500.0,0.00021917,2]
[311862991,1705477839472,-3166.16,0.00021917,2]
[311862992,1705477839482,-500.0,0.00021917,2]
[311862993,1705477839491,-500.0,0.00021917,2]
[311862994,1705477839500,-500.0,0.00021917,2]
[311862995,1705477839510,-500.0,0.00021917,2]
[311862996,1705477839519,-388.70818294,0.00021917,2]
[311862997,1705477839528,-500.0,0.00021917,2]
[311862998,1705477839537,-500.0,0.00021917,2]
[311862999,1705477839547,-500.0,0.00021917,2]
[311863000,1705477839556,-500.0,0.00021917,2]
[311863001,1705477839565,-500.0,0.00021917,2]
[311863002,1705477839574,-500.0,0.00021917,2]
[311863003,1705477839583,-500.0,0.00021917,2]
[311863004,1705477839593,-634.6,0.00021917,2]
[311863005,1705477839602,-503.88032041,0.00021917,2]
[311863006,1705477839611,-500.0,0.00021917,2]
[311863007,1705477839621,-500.0,0.00021917,2]
[311863008,1705477839630,-490.92752769,0.00021917,2]
[311863009,1705477839639,-500.0,0.00021917,2]
[311863010,1705477839651,-500.0,0.00021917,2]
[311863011,1705477839660,-817.11,0.00021917,2]
[311863012,1705477839669,-500.0,0.00021917,2]
[311863013,1705477839678,-500.0,0.00021917,2]
[311863014,1705477839688,-500.0,0.00021917,2]
[311863015,1705477839698,-1582.59,0.00021917,2]
[311863016,1705477839707,-500.0,0.00021917,2]
[311863017,1705477839716,-500.0,0.00021917,2]
[311863018,1705477839726,-500.0,0.00021917,2]
[311863019,1705477839736,-500.0,0.00021917,2]
[311863020,1705477839745,-500.0,0.00021917,2]
[311863021,1705477839758,-500.0,0.00021917,2]
[311863022,1705477839767,-500.0,0.00021917,2]
[311863023,1705477839776,-500.0,0.00021917,2]
[311863024,1705477839785,-500.0,0.00021917,2]
[311863025,1705477839794,-500.0,0.00021917,2]
[311863026,1705477839804,-550.0,0.00021917,2]
[311863027,1705477839813,-500.0,0.00021917,2]
[311863028,1705477839823,-2754.94,0.00021917,2]
[311863029,1705477839833,-500.0,0.00021917,2]
[311863030,1705477839844,-500.0,0.00021917,2]
[311863031,1705477839853,-1530.53,0.00021917,2]
[311863032,1705477839862,-500.0,0.00021917,2]
[311863033,1705477839871,-500.0,0.00021917,2]
[311863034,1705477839880,-500.0,0.00021917,2]
[311863035,1705477839889,-500.0,0.00021917,2]
[311863036,1705477839900,-757.53,0.00021917,2]
[311863037,1705477839910,-500.0,0.00021917,2]
[311863038,1705477839919,-686.93,0.00021917,2]
[311863039,1705477839928,-500.0,0.00021917,2]
[311863040,1705477839937,-2506.04,0.00021917,2]
[311863041,1705477839946,-357.88867272,0.00021917,2]
[311863042,1705477839955,-573.8,0.00021917,2]
[311863043,1705477839964,-500.0,0.00021917,2]
[311863044,1705477839973,-500.0,0.00021917,2]
[311863045,1705477839983,-500.0,0.00021917,2]
[311863046,1705477839992,-500.0,0.00021917,2]
[311863047,1705477840002,-500.0,0.00021917,2]
[311863048,1705477840011,-500.0,0.00021917,2]
[311863049,1705477840021,-500.0,0.00021917,2]
[311863050,1705477840030,-5337.1,0.00021917,2]
[311863051,1705477840038,-500.0,0.00021917,2]
[311863052,1705477840047,-500.0,0.00021917,2]
[311863053,1705477840057,-500.0,0.00021917,2]
[311863054,1705477840066,-500.0,0.00021917,2]
[311863055,1705477840075,-25678.22,0.00021917,2]
[311863056,1705477840084,-500.0,0.00021917,2]
[311863057,1705477840093,-785.22,0.00021917,2]
[311863058,1705477840103,-500.0,0.00021917,2]
[311863059,1705477840112,-13783.92,0.00021917,2]
[311863060,1705477840121,-500.0,0.00021917,2]
[311863061,1705477840130,-500.0,0.00021917,2]
[311863062,1705477840139,-500.0,0.00021917,2]
[311863063,1705477840148,-500.0,0.00021917,2]
[311863064,1705477840164,-2563.56,0.00021917,2]
[311863065,1705477840179,-500.0,0.00021917,2]
[311863066,1705477840188,-500.0,0.00021917,2]
[311863067,1705477840198,-1946.1,0.00021917,2]
[311863068,1705477840207,-500.0,0.00021917,2]
[311863069,1705477840217,-815.86,0.00021917,2]
[311863070,1705477840226,-451.30321561,0.00021917,2]
[311863071,1705477840236,-507.15349144,0.00021917,2]
[311863072,1705477840245,-500.0,0.00021917,2]
[311863073,1705477840255,-2260.58,0.00021917,2]
[311863074,1705477840264,-500.0,0.00021917,2]
[311863075,1705477840274,-500.0,0.00021917,2]
[311863076,1705477840283,-500.0,0.00021917,2]
[311863077,1705477840293,-1536.99,0.00021917,2]
[311863078,1705477840302,-500.0,0.00021917,2]
[311863079,1705477840312,-500.0,0.00021917,2]
[311863080,1705477840321,-500.0,0.00021917,2]
[311863081,1705477840331,-500.0,0.00021917,2]
[311863082,1705477840341,-500.0,0.00021917,2]
[311863083,1705477840350,-834.99,0.00021917,2]
[311863084,1705477840360,-500.0,0.00021917,2]
[311863085,1705477840369,-600.88725899,0.00021917,2]
[311863086,1705477840379,-500.0,0.00021917,2]
[311863087,1705477840390,-787.0,0.00021917,2]
[311863088,1705477840402,-6467.26,0.00021917,2]
[311863089,1705477840413,-500.0,0.00021917,2]
[311863090,1705477840423,-500.0,0.00021917,2]
[311863091,1705477840432,-500.0,0.00021917,2]
[311863092,1705477840441,-771.34,0.00021917,2]
[311863093,1705477840451,-1259.92,0.00021917,2]
[311863094,1705477840461,-500.0,0.00021917,2]
[311863095,1705477840470,-500.0,0.00021917,2]
[311863096,1705477840480,-1251.27,0.00021917,2]
[311863097,1705477840489,-500.0,0.00021917,2]
[311863098,1705477840498,-201.66657356,0.00021917,2]
[311863099,1705477840508,-1691.69,0.00021917,2]
[311863100,1705477840518,-500.0,0.00021917,2]
[311863101,1705477840528,-1539.74,0.00021917,2]
[311863102,1705477840537,-587.34476944,0.00021917,2]
[311863103,1705477840650,-500.0,0.00021917,2]
[311863104,1705477840660,-490.57231035,0.00021917,2]
[311863106,1705477840670,-500.0,0.00021917,2]
[311863107,1705477840679,-500.0,0.00021917,2]
[311863108,1705477840688,-725.48,0.00021917,2]
[311863109,1705477840698,-625.84,0.00021917,2]
[311863110,1705477840707,-6871.91,0.00021917,2]
[311863111,1705477840716,-500.0,0.00021917,2]
[311863113,1705477840725,-15124.39,0.00021917,2]
[311863114,1705477840735,-166.666666,0.00021918,2]
[311863115,1705477840744,-293.1976279,0.00022,4]
[311863116,1705477840756,-212.60595709,0.00022,2]
[311863117,1705477840766,-158.46661662,0.00022044,2]
[311863118,1705477840775,-827.27851965,0.00022044,2]
[311863119,1705477840784,-28550.83593503,0.00022044,2]
[311863120,1705477840794,-463.7706374,0.00022054,2]
[311863121,1705477840803,-405.76716243,0.00022054,2]
[311863122,1705477840813,-500.0,0.00022054,2]
[311863123,1705477840822,-500.0,0.00022054,2]
[311863124,1705477840831,-1042.14,0.00022054,2]
[311863125,1705477840841,-500.0,0.00022054,2]
[311863126,1705477840851,-375.08228626,0.00022054,2]
[311863127,1705477840860,-509.38162307,0.00022054,2]
[311863128,1705477840870,-500.0,0.00022054,2]
[311863129,1705477840879,-1292.43,0.00022054,2]
[311863130,1705477840888,-624.44,0.00022054,2]
[311863131,1705477840898,-500.0,0.00022054,2]
[311863132,1705477840908,-500.0,0.00022054,2]
[311863133,1705477840917,-740.2,0.00022054,2]
[311863134,1705477840926,-918.43,0.00022054,2]
[311863135,1705477840936,-500.0,0.00022054,2]
[311863136,1705477840945,-500.0,0.00022054,2]
[311863137,1705477840954,-500.0,0.00022054,2]
[311863138,1705477840963,-500.0,0.00022054,2]
[311863139,1705477840973,-421.13330795,0.00022054,2]
[311863140,1705477840982,-259.75011283,0.00022054,2]
[311863141,1705477840991,-500.0,0.00022054,2]
[311863142,1705477841001,-1057.01,0.00022054,2]
[311863143,1705477841009,-500.0,0.00022054,2]
[311863144,1705477841019,-500.0,0.00022054,2]
[311863145,1705477841028,-500.0,0.00022054,2]
[311863146,1705477841038,-500.0,0.00022054,2]
[311863147,1705477841047,-2274.38,0.00022054,2]
[311863148,1705477841057,-503.51,0.00022054,2]
[311863149,1705477841066,-1432.89,0.00022054,2]
[311863150,1705477841075,-500.0,0.00022054,2]
[311863151,1705477841085,-3166.16,0.00022054,2]
[311863152,1705477841095,-500.0,0.00022054,2]
[311863153,1705477841104,-500.0,0.00022054,2]
[311863154,1705477841114,-500.0,0.00022054,2]
[311863155,1705477841123,-500.0,0.00022054,2]
[311863156,1705477841132,-500.0,0.00022054,2]
[311863157,1705477841142,-634.6,0.00022054,2]
[311863158,1705477841152,-500.0,0.00022054,2]
[311863159,1705477841162,-817.11,0.00022054,2]
[311863160,1705477841171,-500.0,0.00022054,2]
[311863161,1705477841180,-500.0,0.00022054,2]
[311863162,1705477841189,-500.0,0.00022054,2]
[311863163,1705477841200,-1582.59,0.00022054,2]
[311863164,1705477841209,-500.0,0.00022054,2]
[311863165,1705477841219,-500.0,0.00022054,2]
[311863166,1705477841228,-500.0,0.00022054,2]
[311863167,1705477841237,-500.0,0.00022054,2]
[311863168,1705477841246,-500.0,0.00022054,2]
[311863169,1705477841256,-500.0,0.00022054,2]
[311863171,1705477841265,-2754.94,0.00022054,2]
[311863172,1705477841274,-500.0,0.00022054,2]
[311863173,1705477841283,-1530.53,0.00022054,2]
[311863174,1705477841293,-500.0,0.00022054,2]
[311863175,1705477841302,-500.0,0.00022054,2]
[311863176,1705477841310,-344.85757155,0.00022054,2]
[311863177,1705477841320,-757.53,0.00022054,2]
[311863178,1705477841329,-519.27138741,0.00022054,2]
[311863179,1705477841339,-686.93,0.00022054,2]
[311863180,1705477841348,-500.0,0.00022054,2]
[311863181,1705477841358,-2506.04,0.00022054,2]
[311863182,1705477841367,-573.8,0.00022054,2]
[311863183,1705477841376,-500.0,0.00022054,2]
[311863184,1705477841385,-500.0,0.00022054,2]
[311863185,1705477841395,-500.0,0.00022054,2]
[311863186,1705477841404,-500.0,0.00022054,2]
[311863187,1705477841414,-500.0,0.00022054,2]
[311863188,1705477841424,-500.0,0.00022054,2]
[311863189,1705477841435,-500.0,0.00022054,2]
[311863190,1705477841444,-5337.1,0.00022054,2]
[311863191,1705477841454,-500.0,0.00022054,2]
[311863192,1705477841463,-500.0,0.00022054,2]
[311863193,1705477841473,-500.0,0.00022054,2]
[311863195,1705477841482,-500.0,0.00022054,2]
[311863196,1705477841491,-25678.22,0.00022054,2]
[311863197,1705477841501,-500.0,0.00022054,2]
[311863198,1705477841511,-785.22,0.00022054,2]
[311863199,1705477841520,-500.0,0.00022054,2]
[311863200,1705477841529,-13783.92,0.00022054,2]
[311863201,1705477841539,-451.09078181,0.00022054,2]
[311863202,1705477841548,-500.0,0.00022054,2]
[311863203,1705477841558,-2563.56,0.00022054,2]
[311863204,1705477841567,-500.0,0.00022054,2]
[311863205,1705477841576,-500.0,0.00022054,2]
[311863206,1705477841585,-1946.1,0.00022054,2]
[311863207,1705477841595,-500.0,0.00022054,2]
[311863208,1705477841604,-815.86,0.00022054,2]
[311863209,1705477841613,-500.0,0.00022054,2]
[311863210,1705477841623,-2260.58,0.00022054,2]
[311863211,1705477841633,-500.0,0.00022054,2]
[311863212,1705477841643,-500.0,0.00022054,2]
[311863213,1705477841652,-500.0,0.00022054,2]
[311863214,1705477841662,-1536.99,0.00022054,2]
[311863215,1705477841671,-500.0,0.00022054,2]
[311863216,1705477841681,-500.0,0.00022054,2]
[311863217,1705477841690,-500.0,0.00022054,2]
[311863218,1705477841699,-500.0,0.00022054,2]
[311863219,1705477841709,-500.0,0.00022054,2]
[311863220,1705477841718,-834.99,0.00022054,2]
[311863221,1705477841727,-500.0,0.00022054,2]
[311863222,1705477841738,-500.0,0.00022054,2]
[311863223,1705477841749,-787.0,0.00022054,2]
[311863224,1705477841759,-6467.26,0.00022054,2]
[311863225,1705477841768,-500.0,0.00022054,2]
[311863226,1705477841779,-500.0,0.00022054,2]
[311863227,1705477841788,-500.0,0.00022054,2]
[311863228,1705477841797,-771.34,0.00022054,2]
[311863229,1705477841806,-1259.92,0.00022054,2]
[311863230,1705477841815,-500.0,0.00022054,2]
[311863231,1705477841825,-1251.27,0.00022054,2]
[311863232,1705477841834,-505.14162514,0.00022054,2]
[311863233,1705477841843,-1691.69,0.00022054,2]
[311863234,1705477841852,-1539.74,0.00022054,2]
[311863235,1705477841861,-500.0,0.00022054,2]
[311863236,1705477841870,-500.0,0.00022054,2]
[311863237,1705477841880,-500.0,0.00022054,2]
[311863238,1705477841889,-725.48,0.00022054,2]
[311863239,1705477841899,-625.84,0.00022054,2]
[311863240,1705477841908,-6871.91,0.00022054,2]
[311863241,1705477841918,-500.0,0.00022054,2]
[311863242,1705477841927,-15124.39,0.00022054,2]
[311863243,1705477841937,-644.80312095,0.00022189,2]
[311863244,1705477841946,-857.54887906,0.00022189,2]
[311863245,1705477841955,-426.25234149,0.00022189,2]
[311863246,1705477841964,-500.0,0.00022191,2]
[311863247,1705477841973,-1042.14,0.00022191,2]
[311863248,1705477841982,-500.0,0.00022191,2]
[311863249,1705477841991,-500.0,0.00022191,2]
[311863250,1705477842000,-1292.43,0.00022191,2]
[311863251,1705477842009,-624.44,0.00022191,2]
[311863252,1705477842019,-500.0,0.00022191,2]
[311863253,1705477842028,-500.0,0.00022191,2]
[311863254,1705477842037,-740.2,0.00022191,2]
[311863255,1705477842046,-918.43,0.00022191,2]
[311863256,1705477842055,-500.0,0.00022191,2]
[311863257,1705477842064,-500.0,0.00022191,2]
[311863258,1705477842073,-500.0,0.00022191,2]
[311863259,1705477842082,-500.0,0.00022191,2]
[311863260,1705477842091,-167.60150433,0.00022191,2]
[311863261,1705477842100,-1057.01,0.00022191,2]
[311863262,1705477842109,-500.0,0.00022191,2]
[311863263,1705477842118,-500.0,0.00022191,2]
[311863264,1705477842127,-500.0,0.00022191,2]
[311863265,1705477842137,-500.0,0.00022191,2]
[311863266,1705477842146,-2274.38,0.00022191,2]
[311863267,1705477842155,-503.51,0.00022191,2]
[311863268,1705477842164,-1432.89,0.00022191,2]
[311863269,1705477842173,-500.0,0.00022191,2]
[311863270,1705477842183,-3166.16,0.00022191,2]
[311863271,1705477842192,-500.0,0.00022191,2]
[311863272,1705477842202,-302.98557895,0.00022191,2]
[311863273,1705477842211,-500.0,0.00022191,2]
[311863274,1705477842220,-588.73529456,0.00022191,2]
[311863275,1705477842229,-500.0,0.00022191,2]
[311863276,1705477842239,-634.6,0.00022191,2]
[311863277,1705477842248,-500.0,0.00022191,2]
[311863278,1705477842258,-817.11,0.00022191,2]
[311863279,1705477842268,-500.0,0.00022191,2]
[311863280,1705477842277,-500.0,0.00022191,2]
[311863281,1705477842286,-500.0,0.00022191,2]
[311863282,1705477842296,-1582.59,0.00022191,2]
[311863283,1705477842305,-305.08682904,0.00022191,2]
[311863284,1705477842381,-500.0,0.00022191,2]
[311863285,1705477842390,-500.0,0.00022191,2]
[311863286,1705477842399,-500.0,0.00022191,2]
[311863287,1705477842408,-500.0,0.00022191,2]
[311863288,1705477842418,-500.0,0.00022191,2]
[311863289,1705477842426,-2754.94,0.00022191,2]
[311863290,1705477842435,-500.0,0.00022191,2]
[311863291,1705477842444,-1530.53,0.00022191,2]
[311863292,1705477842454,-500.0,0.00022191,2]
[311863293,1705477842463,-500.0,0.00022191,2]
[311863294,1705477842473,-757.53,0.00022191,2]
[311863295,1705477842482,-686.93,0.00022191,2]